bitfinex-derivatives/quotes_ETHF0:USTF0_20250926
["timestamp","ask_amount","ask_price","bid_price","bid_amount"]
[1758865530119,0.353,3945.0,3944.7,0.45602]
[1758865530320,0.3365,3944.9,3944.8,0.256]
[1758865530522,0.56,3944.9,3944.8,0.256]
[1758865531016,0.3365,3944.9,3944.8,0.256]
[1758865531216,0.466,3945.0,3944.9,0.456]
[1758865531624,0.466,3945.0,3944.9,2.03901742]
[1758865532317,0.466,3945.0,3944.9,42.83901742]
[1758865533727,0.1295,3945.0,3944.9,42.83901742]
[1758865533925,0.3365,3945.3,3945.2,0.45597]
[1758865534122,0.3365,3945.3,3945.2,2.29498742]
[1758865535721,0.1295,3945.5,3945.4,0.45595]
[1758865535928,0.3365,3945.7,3945.6,0.45592]
[1758865536128,0.3365,3945.7,3945.6,0.71192]
[1758865536426,0.3365,3945.7,3945.6,41.51192]
[1758865537428,0.1295,3946.0,3945.9,0.45589]
[1758865537638,0.1295,3946.0,3945.9,2.29490742]
[1758865537929,0.9068,3946.0,3945.9,0.71189]
[1758865538324,0.9068,3946.0,3945.9,41.51189]
[1758865538519,2.28810381,3946.0,3945.9,41.056]
[1758865539018,2.28810381,3946.0,3945.9,40.8]
[1758865539217,0.9068,3946.0,3945.9,41.056]
[1758865539429,2.28810381,3946.0,3945.9,40.8]
[1758865539631,2.28810381,3946.0,3945.9,41.056]
[1758865542526,0.4408,3945.3,3945.2,0.45596]
[1758865542842,0.4408,3945.1,3945.0,0.45599]
[1758865543031,0.7773,3945.1,3945.0,41.51199]
[1758865543227,0.7773,3945.1,3945.0,41.056]
[1758865543426,0.7773,3945.1,3945.0,40.8]
[1758865543731,0.7773,3945.1,3945.0,41.056]
[1758865544933,0.7773,3945.1,3945.0,40.8]
[1758865545528,0.1372,3944.5,3944.4,3.66386]
[1758865545831,0.6972,3944.5,3944.4,3.91986]
[1758865546031,0.6972,3944.5,3944.4,44.71986]
[1758865546533,0.6972,3944.5,3944.4,46.10116381]
[1758865546723,0.4737,3944.5,3944.4,46.10116381]
[1758865548037,0.4737,3944.5,3944.4,44.71986]
[1758865550729,0.3365,3944.9,3944.8,0.45601]
[1758865550927,0.3365,3944.9,3944.8,0.71201]
[1758865551127,0.7773,3944.9,3944.8,0.71201]
[1758865551328,2.15860381,3944.9,3944.8,0.71201]
[1758865551527,2.15860381,3944.9,3944.8,0.256]
[1758865551724,0.1372,3944.5,3944.4,3.2078]
[1758865551929,2.29580381,3944.5,3944.4,3.4638]
[1758865553323,0.9145,3944.5,3944.4,3.4638]
[1758865553936,0.4737,3944.5,3944.4,3.4638]
[1758865554129,0.3607,3945.0,3944.7,0.45602]
[1758865554331,0.3365,3944.9,3944.8,0.256]
[1758865554633,1.94130381,3944.9,3944.8,0.256]
[1758865554933,1.71780381,3944.9,3944.8,0.256]
[1758865555327,1.94130381,3944.9,3944.8,0.256]
[1758865555535,2.15860381,3944.9,3944.8,0.256]
[1758865555837,0.7773,3944.9,3944.8,0.256]
[1758865556023,2.15860381,3944.9,3944.8,0.256]
[1758865556227,1.82210381,3944.9,3944.4,3.2078]
[1758865556434,0.4737,3944.5,3944.4,3.66386]
[1758865556635,0.4737,3944.5,3944.4,3.91986]
[1758865563841,0.3143,3944.9,3944.8,0.45602]
[1758865564042,0.3143,3944.9,3944.8,2.09332381]
[1758865564245,0.464,3945.5,3945.4,0.45595]
[1758865564546,0.464,3945.5,3945.4,2.09325381]
[1758865564936,0.464,3945.5,3945.4,42.63725381]
[1758865565139,0.464,3945.5,3945.4,41.056]
[1758865566633,0.464,3945.5,3945.4,40.8]
[1758865566840,0.464,3945.5,3945.4,41.056]
[1758865567647,0.464,3945.5,3945.4,40.8]
[1758865567943,0.9143,3945.0,3944.9,0.456]
[1758865568242,2.29560381,3945.0,3944.9,0.712]
[1758865568546,2.29560381,3945.0,3944.9,41.056]
[1758865569149,2.29560381,3945.0,3944.9,40.8]
[1758865569349,0.7769,3944.9,3944.8,3.2078]
[1758865569544,0.7769,3944.9,3944.8,3.4638]
[1758865569853,0.7769,3944.9,3944.8,44.2638]
[1758865570039,0.7769,3944.9,3944.8,41.056]
[1758865570239,1.33033778,3944.9,3944.8,41.056]
[1758865570638,0.7769,3943.8,3943.2,1.8214535]
[1758865570843,0.1374,3943.0,3942.9,0.02536236]
[1758865571048,2.06990381,3943.0,3942.9,0.28236236]
[1758865571548,2.06990381,3943.0,3942.9,0.02536236]
[1758865571549,2.29560381,3943.0,3942.9,0.02536236]
[1758865571752,2.29560381,3943.0,3942.9,0.28236236]
[1758865572250,2.29560381,3943.0,3942.9,0.02536236]
[1758865572553,2.29560381,3943.0,3942.9,0.28236236]
[1758865574466,0.6886,3943.0,3942.9,0.28236236]
[1758865576966,0.9143,3943.0,3942.9,0.28236236]
[1758865580469,0.6886,3943.0,3942.9,0.28236236]
[1758865580871,0.9143,3943.0,3942.9,0.28236236]
[1758865584875,0.9143,3943.0,3942.9,0.02536236]
[1758865585075,0.9143,3943.0,3942.9,0.28236236]
[1758865585469,0.7769,3941.9,3941.8,3.2078]
[1758865585770,0.7769,3941.9,3941.8,0.0369]
[1758865585969,0.5512,3941.9,3941.8,41.33016]
[1758865587175,0.5512,3941.9,3941.8,41.1308]
[1758865587379,1.93250381,3941.9,3941.8,41.1308]
[1758865587570,0.5512,3941.9,3941.8,41.1308]
[1758865588377,1.93250381,3941.9,3941.8,40.8]
[1758865588578,1.93250381,3941.9,3941.8,41.057]
[1758865589270,0.5512,3941.9,3941.8,41.057]
[1758865589573,0.3268,3941.9,3941.8,41.0801]
[1758865590070,0.3268,3941.9,3941.8,41.057]
[1758865590273,0.3268,3941.9,3941.8,41.058]
[1758865590477,0.3268,3941.9,3941.8,40.8]
[1758865590775,0.3268,3941.9,3941.8,41.058]
[1758865592380,0.3268,3941.9,3941.8,42.43930381]
[1758865593176,0.3268,3941.9,3941.8,42.45990381]
[1758865593478,0.1374,3942.0,3941.9,0.54275]
[1758865593479,0.4619,3942.0,3941.9,0.54275]
[1758865593680,0.4619,3942.0,3941.9,3.75055]
[1758865593970,2.27360381,3942.5,3942.4,0.52209]
[1758865594178,2.27360381,3942.5,3942.4,0.258]
[1758865594369,0.4304,3942.3,3942.0,0.45633]
[1758865594577,2.13620381,3942.1,3942.0,0.45633]
[1758865594773,2.13620381,3942.1,3942.0,0.71433]
[1758865595783,2.13620381,3942.1,3942.0,0.258]
[1758865596277,0.2205,3941.9,3941.8,41.25636]
[1758865596582,1.92630381,3941.9,3941.8,40.8]
[1758865596881,2.13620381,3941.9,3941.8,0.258]
[1758865597074,2.13620381,3941.9,3941.8,0.2909]
[1758865598581,0.7549,3941.9,3941.8,0.258]
[1758865599981,0.7549,3941.9,3941.8,41.058]
[1758865600178,0.7549,3941.9,3941.8,40.8]
[1758865600377,1.33232444,3941.9,3941.8,41.058]
[1758865602385,1.33232444,3941.9,3941.8,40.8]
[1758865602585,4.54012444,3941.9,3941.8,40.8]
[1758865602785,4.54012444,3941.9,3941.7,0.258]
[1758865602786,4.99648444,3941.9,3941.7,0.258]
[1758865602974,2.91772846,3941.8,3941.7,0.258]
[1758865603384,2.91772846,3941.8,3941.7,41.058]
[1758865607087,2.91772846,3941.8,3941.7,0.258]
[1758865607279,2.91772846,3941.8,3941.3,0.45641]
[1758865607280,0.2205,3941.1,3941.0,3.2736]
[1758865607587,2.34030402,3941.1,3941.0,41.1238]
[1758865608480,0.4304,3940.7,3940.6,3.69719]
[1758865608679,0.7549,3940.7,3940.6,3.5316]
[1758865609081,0.7549,3940.7,3940.6,3.2078]
[1758865609288,0.1368,3939.5,3939.3,3.2078]
[1758865609490,0.1368,3940.0,3939.4,0.0864]
[1758865609785,0.545,3939.9,3939.8,0.0658]
[1758865609986,0.545,3939.9,3939.8,0.3248]
[1758865610187,0.3245,3939.9,3939.8,0.3248]
[1758865610584,0.3245,3939.9,3939.8,0.3454]
[1758865611188,0.545,3939.9,3939.8,0.0658]
[1758865611491,0.545,3939.9,3939.8,0.3454]
[1758865611492,0.3245,3939.9,3939.8,0.3454]
[1758865612586,0.3245,3940.3,3939.9,0.45658]
[1758865612788,0.3245,3940.3,3940.2,0.0658]
[1758865613090,0.3245,3940.3,3940.2,0.80195]
[1758865613291,0.4613,3940.5,3940.4,0.54292]
[1758865613585,0.1368,3941.0,3940.6,0.0864]
[1758865613786,3.2078,3941.1,3941.0,0.45645]
[1758865613984,3.78167995,3941.1,3941.0,41.58125]
[1758865614184,4.10617995,3941.1,3941.0,41.58125]
[1758865614589,0.3245,3941.1,3941.0,41.58125]
[1758865615290,0.89870677,3941.1,3941.0,41.58125]
[1758865615597,0.89870677,3941.1,3941.0,41.1248]
[1758865615790,0.3245,3941.1,3941.0,41.1248]
[1758865615990,0.3245,3941.1,3941.0,41.1454]
[1758865616288,4.93000402,3941.5,3941.0,41.1125]
[1758865616487,0.3958,3942.0,3941.3,0.0864]
[1758865616488,0.3245,3941.9,3941.3,0.0864]
[1758865616688,0.3245,3941.9,3941.2,3.2078]
[1758865616689,0.3245,3941.9,3941.8,0.0658]
[1758865616991,1.32778953,3941.9,3941.8,0.3248]
[1758865619098,0.89738953,3941.9,3941.8,0.3248]
[1758865619596,1.11788953,3941.9,3941.8,0.3248]
[1758865619993,1.00328953,3941.9,3941.2,3.2078]
[1758865620186,1.58540402,3941.3,3941.0,40.8]
[1758865620391,0.7618,3941.1,3941.0,40.8]
[1758865620598,0.7618,3941.1,3941.0,41.059]
[1758865622989,1.02238565,3941.1,3939.9,3.2283]
[1758865623194,5.39469838,3941.4,3939.9,3.2283]
[1758865623195,0.7618,3940.4,3940.3,0.0656]
[1758865623494,0.7618,3940.4,3940.3,41.1246]
[1758865624098,0.7618,3940.4,3940.3,40.8656]
[1758865624300,0.7618,3940.4,3940.3,41.1246]
[1758865624496,0.7618,3940.4,3940.3,41.0918]
[1758865624699,1.79102783,3940.4,3940.3,41.059]
[1758865624903,1.79102783,3940.4,3939.5,3.66443]
[1758865624904,0.5395,3939.6,3939.5,3.278]
[1758865625093,0.5395,3939.6,3939.5,3.537]
[1758865625298,0.5395,3939.6,3939.5,44.337]
[1758865626093,3.2078,3940.8,3940.4,0.438]
[1758865626296,0.5726,3940.5,3940.4,0.438]
[1758865626491,0.45656,3940.2,3939.5,40.9145]
[1758865626692,0.2178,3939.6,3939.5,40.8]
[1758865626893,0.2178,3939.6,3939.5,41.059]
[1758865627099,3.2078,3940.4,3939.9,1.22697]
[1758865627300,3.2078,3940.4,3940.3,0.7704]
[1758865627504,3.2078,3940.4,3940.3,1.0294]
[1758865627804,3.4256,3940.4,3940.3,1.0294]
[1758865627999,3.6459,3940.4,3940.3,0.697]
[1758865628194,3.5295,3940.4,3940.3,1.0294]
[1758865628406,3.2078,3940.4,3940.3,1.0294]
[1758865629000,3.6459,3940.4,3940.3,0.7704]
[1758865629200,0.3217,3940.0,3939.8,0.3324]
[1758865629499,3.2078,3940.4,3940.3,0.3324]
[1758865629700,3.2078,3940.4,3940.3,1.0294]
[1758865630094,3.9676,3940.4,3940.3,0.697]
[1758865632298,3.9676,3940.4,3940.3,0.259]
[1758865632498,0.8943,3940.0,3939.9,0.2235]
[1758865632797,0.8943,3940.0,3939.9,0.4835]
[1758865632999,0.8943,3940.0,3939.9,0.698]
[1758865633194,0.8943,3940.0,3939.9,1.0304]
[1758865633195,0.674,3940.0,3939.9,1.0304]
[1758865633707,0.8943,3940.0,3939.9,0.698]
[1758865634601,0.8943,3940.0,3939.9,1.0304]
[1758865636413,0.8943,3940.0,3939.9,0.4835]
[1758865638295,0.8943,3940.0,3939.9,0.26]
[1758865638502,0.77828,3939.9,3939.5,40.8]
[1758865638705,0.7598,3939.7,3939.6,0.259]
[1758865639019,0.7598,3939.7,3939.6,0.4825]
[1758865640405,0.3217,3939.7,3939.6,1.0294]
[1758865640606,0.3523,3940.0,3939.9,0.7704]
[1758865640805,0.5726,3940.0,3939.9,0.4735]
[1758865641015,0.5726,3940.0,3939.9,0.259]
[1758865641313,0.8943,3940.0,3939.9,0.4825]
[1758865642713,0.8943,3940.0,3939.9,0.697]
[1758865646610,0.3217,3939.9,3939.5,44.0078]
[1758865646811,0.7598,3939.6,3939.5,40.8]
[1758865647018,0.7598,3939.6,3939.5,41.059]
[1758865648921,0.3217,3939.6,3939.5,41.059]
[1758865649118,3.2331,3940.1,3940.0,0.7704]
[1758865649318,3.81052582,3940.1,3940.0,1.0294]
[1758865649526,4.35002582,3940.1,3940.0,1.0294]
[1758865650218,0.1374,3940.0,3939.5,44.0078]
[1758865650412,0.6763,3940.0,3939.9,0.4374]
[1758865650612,1.45992331,3940.0,3939.9,0.6964]
[1758865650813,1.45992331,3940.0,3939.9,0.259]
[1758865652016,1.45992331,3940.0,3939.9,0.4867]
[1758865653120,1.45992331,3940.0,3939.9,0.6964]
[1758865655121,1.45992331,3940.0,3939.9,0.259]
[1758865655313,0.4258,3939.6,3939.5,40.8]
[1758865655514,1.32336808,3939.6,3939.5,41.059]
[1758865659126,1.32336808,3939.6,3939.5,40.8]
[1758865659322,1.32336808,3939.6,3939.5,41.059]
[1758865660121,1.32336808,3939.6,3939.1,3.2078]
[1758865660321,1.32336808,3939.6,3938.6,1.8214535]
[1758865660322,0.45668,3939.1,3938.6,0.3387]
[1758865660521,1.46076808,3939.0,3938.9,0.2277]
[1758865660724,1.46076808,3939.0,3938.9,0.4867]
[1758865661119,1.46076808,3939.0,3938.9,0.259]
[1758865661515,1.46076808,3939.0,3938.0,4.87757809]
[1758865661516,0.7474,3938.3,3937.9,0.02539457]
[1758865661822,0.7474,3938.3,3938.2,0.4374]
[1758865662019,1.32255623,3938.3,3938.2,0.6964]
[1758865662221,0.7474,3938.3,3938.2,0.6964]
[1758865662428,0.7474,3938.3,3938.2,0.4867]
[1758865662921,0.7474,3938.3,3938.2,0.259]
[1758865663318,0.7474,3938.3,3938.2,1.15318]
[1758865663522,3.3452,3939.0,3938.4,0.7761]
[1758865663717,0.57422407,3938.9,3938.8,1.2328]
[1758865663924,0.7474,3939.2,3939.1,0.2277]
[1758865664119,1.31701763,3939.2,3939.1,0.4867]
[1758865664319,1.31701763,3939.2,3939.1,0.6964]
[1758865664528,2.70292396,3939.2,3939.1,0.6964]
[1758865664723,4.91530633,3939.4,3939.3,0.4374]
[1758865665028,5.34110633,3939.4,3939.3,0.4374]
[1758865665227,5.34110633,3939.4,3938.7,0.3387]
[1758865665426,3.9552,3939.4,3939.3,40.8]
[1758865665628,3.9552,3939.4,3939.3,41.06]
[1758865667323,4.41184,3939.4,3939.3,41.06]
[1758865667630,4.52472658,3939.4,3939.3,40.8]
[1758865667831,4.52472658,3939.4,3939.3,41.059]
[1758865669833,9.28723944,3939.4,3939.3,41.059]
[1758865670230,9.28723944,3939.4,3939.3,0.259]
[1758865671429,0.3216,3939.3,3939.0,40.8]
[1758865671634,0.5301,3938.0,3937.9,0.80149457]
[1758865671825,0.5301,3938.0,3937.9,1.06149457]
[1758865672024,0.3216,3938.0,3937.9,41.86149457]
[1758865672931,0.459,3938.0,3937.9,41.86149457]
[1758865673130,0.3216,3938.0,3937.9,41.86149457]
[1758865674236,0.8848,3938.0,3937.9,0.72279457]
[1758865674538,3.2078,3938.2,3938.0,0.4532]
[1758865674837,3.9552,3938.2,3938.1,41.4974]
[1758865675234,0.45677,3938.4,3938.1,41.4974]
[1758865675235,5.29261286,3938.6,3938.5,0.4374]
[1758865675432,0.5301,3938.6,3938.5,1.0361]
[1758865676537,0.7474,3938.6,3938.5,0.6974]
[1758865676733,0.7474,3938.6,3938.5,0.26]
[1758865676932,0.7474,3938.6,3938.5,0.4877]
[1758865677440,0.7474,3938.6,3938.5,0.6974]
[1758865678129,0.7474,3938.6,3938.5,0.4877]
[1758865678934,0.2085,3938.2,3938.1,41.1387]
[1758865679132,0.5301,3938.2,3938.1,41.3987]
[1758865679532,0.5301,3938.2,3938.1,40.8]
[1758865680141,1.20649,3938.1,3938.0,0.4552]
[1758865680444,0.5506,3938.0,3937.9,0.23539457]
[1758865680645,0.879,3938.0,3937.9,41.03539457]
[1758865680836,4.0868,3938.0,3937.9,41.29539457]
[1758865681234,4.0868,3938.0,3937.9,0.49539457]
[1758865681434,4.0868,3938.0,3937.9,0.23539457]
[1758865681735,7.97031286,3938.4,3937.9,1.05029457]
[1758865682031,0.78519,3938.2,3938.1,0.7649]
[1758865682237,0.3284,3938.2,3938.1,1.0249]
[1758865682744,0.5413,3938.2,3938.1,1.0249]
[1758865682934,0.7497,3938.2,3938.1,0.6975]
[1758865683336,0.7497,3938.2,3938.1,0.4375]
[1758865683533,0.7497,3938.2,3938.1,0.21]
[1758865683740,0.7497,3938.2,3938.1,0.47]
[1758865684133,0.1277,3938.0,3937.9,0.02539457]
[1758865684335,5.65531286,3938.0,3937.9,0.02539457]
[1758865684539,8.86311286,3938.0,3937.9,0.28539457]
[1758865684834,8.86311286,3938.0,3937.9,0.72559457]
[1758865687044,8.86311286,3938.0,3936.1,3.41171421]
[1758865687045,0.1277,3937.0,3936.3,1.8214535]
[1758865687345,0.1277,3937.0,3936.0,3.66482]
[1758865687346,0.4678,3937.0,3936.4,1.15718]
[1758865687646,0.5502,3937.0,3936.9,0.7608]
[1758865687839,3.2078,3937.3,3936.9,1.0208]
[1758865688044,3.2078,3937.3,3937.2,0.4402]
[1758865688045,3.5479,3937.3,3937.2,0.4402]
[1758865688345,1.22198,3937.3,3937.2,0.7002]
[1758865688539,0.7651,3937.3,3937.2,0.4402]
[1758865688845,0.5502,3937.3,3937.2,1.0208]
[1758865689240,0.7651,3937.3,3937.2,1.0208]
[1758865690041,1.22198,3937.3,3937.2,0.7002]
[1758865690248,1.22198,3937.3,3937.2,0.4402]
[1758865690744,0.7651,3937.3,3937.2,0.7012]
[1758865690941,0.7651,3937.3,3937.2,1.0218]
[1758865691142,0.5502,3937.3,3937.2,1.0218]
[1758865691645,0.3401,3937.3,3937.2,1.0218]
[1758865691847,0.5502,3937.3,3937.2,1.0218]
[1758865692047,0.7651,3937.3,3937.2,0.7012]
[1758865692549,0.5502,3937.3,3937.2,1.0218]
[1758865693047,0.3401,3937.7,3937.6,0.7608]
[1758865693242,0.37626954,3938.0,3937.9,0.4402]
[1758865693450,0.6779,3938.0,3937.9,0.7012]
[1758865693645,0.3401,3938.3,3937.9,0.7012]
[1758865693846,0.5502,3938.3,3938.2,0.4402]
[1758865694042,0.5502,3938.3,3938.2,41.5012]
[1758865694247,0.5502,3938.3,3938.2,41.8218]
[1758865695045,0.3401,3938.3,3938.2,41.8218]
[1758865696044,3.2331,3938.4,3938.3,1.21757]
[1758865696444,0.0253,3938.4,3938.3,1.21757]
[1758865697948,3.2078,3939.2,3939.1,0.7608]
[1758865698144,3.2078,3939.2,3939.1,1.0218]
[1758865698343,3.2078,3939.2,3939.1,0.7608]
[1758865698552,3.5479,3939.2,3939.1,41.8218]
[1758865699256,3.2078,3939.2,3939.1,41.8218]
[1758865699554,3.2078,3939.2,3939.1,46.5608]
[1758865699753,3.5479,3939.2,3939.1,81.4248]
[1758865700053,0.3401,3939.2,3939.1,81.4248]
[1758865700557,0.6779,3939.5,3939.4,0.4402]
[1758865700854,0.6779,3939.5,3939.4,1.47844]
[1758865701448,0.2101,3939.9,3939.8,0.4402]
[1758865701650,1.22169,3939.9,3939.4,0.3206]
[1758865701859,0.3426,3939.5,3939.4,0.4402]
[1758865702055,0.5527,3939.5,3939.4,0.7012]
[1758865702356,0.8928,3939.5,3939.4,0.7012]
[1758865702958,0.5527,3940.0,3939.9,0.2261]
[1758865703154,0.5527,3940.0,3939.9,0.7012]
[1758865703355,3.2078,3940.1,3940.0,0.3206]
[1758865703556,3.758,3940.1,3940.0,0.7608]
[1758865703752,3.9729,3940.1,3940.0,0.4402]
[1758865704457,3.9729,3940.1,3940.0,0.7608]
[1758865704858,3.758,3940.1,3940.0,0.7608]
[1758865705664,0.4678,3940.5,3940.4,1.21732]
[1758865705962,0.6779,3940.5,3940.4,1.47832]
[1758865707161,0.7651,3940.8,3940.5,0.45651]
[1758865707459,0.3401,3940.7,3940.6,0.45649]
[1758865707661,0.7651,3940.7,3940.6,0.68259]
[1758865707861,0.7651,3940.7,3940.6,0.89669]
[1758865708856,0.7651,3940.7,3940.6,1.15769]
[1758865709362,0.5502,3940.7,3940.6,1.47829]
[1758865710666,0.7651,3940.7,3940.6,0.89669]
[1758865710957,0.7651,3940.7,3940.6,1.15669]
[1758865711161,0.7651,3940.7,3940.6,1.15769]
[1758865711564,0.7651,3940.7,3940.6,0.89669]
[1758865711759,0.7651,3940.7,3940.6,1.15769]
[1758865713962,0.1345,3940.5,3940.2,0.45654]
[1758865714168,0.3306,3940.2,3940.1,40.8]
[1758865714468,0.3306,3940.2,3940.1,41.06]
[1758865715262,0.3306,3940.2,3940.1,40.8]
[1758865715461,3.5384,3940.2,3940.1,41.06]
[1758865715859,0.45681,3938.0,3937.8,1.8214535]
[1758865716176,0.5771,3937.0,3936.9,0.2121]
[1758865716360,5.67021286,3937.0,3936.9,0.4781]
[1758865716556,0.9077,3937.0,3936.9,0.4781]
[1758865716765,0.5473,3937.0,3936.9,1.0224]
[1758865717171,1.36462,3937.0,3936.9,0.701]
[1758865717559,0.7732,3936.7,3936.6,40.8]
[1758865717767,0.5473,3936.7,3936.6,41.066]
[1758865717967,3.2078,3936.9,3936.6,41.3874]
[1758865718269,3.7551,3936.9,3936.8,0.435]
[1758865718460,3.7551,3936.9,3936.8,0.701]
[1758865718663,3.981,3936.9,3936.8,0.701]
[1758865720267,0.3306,3935.4,3934.6,3.2078]
[1758865720565,0.3306,3935.4,3934.9,0.45716]
[1758865720760,0.3306,3936.2,3935.4,0.1204]
[1758865720960,0.3306,3936.2,3935.6,3.3282]
[1758865721164,0.45699,3936.4,3935.6,3.2078]
[1758865721360,0.3306,3936.4,3935.6,3.2078]
[1758865721566,0.1345,3936.0,3935.7,0.267]
[1758865722168,0.59154,3936.0,3935.6,3.2078]
[1758865722374,0.45706,3935.8,3935.7,0.267]
[1758865722972,0.78766,3935.8,3935.1,0.1204]
[1758865723373,0.45706,3935.8,3935.1,0.1204]
[1758865723568,3.3423,3936.0,3935.3,0.1204]
[1758865723765,0.45704,3935.9,3935.4,39.871]
[1758865723967,0.3306,3935.7,3935.5,0.3874]
[1758865724172,0.3306,3935.7,3935.6,0.267]
[1758865724376,0.1345,3936.0,3935.6,0.3874]
[1758865724377,0.59153,3936.0,3935.6,0.3874]
[1758865724671,0.3306,3935.9,3935.6,0.267]
[1758865724870,0.3306,3935.9,3935.7,0.1204]
[1758865725171,0.45708,3935.6,3935.5,2.65633]
[1758865725361,0.3306,3934.6,3934.0,3.2078]
[1758865725672,0.3306,3934.9,3934.5,0.73138994]
[1758865725974,0.3306,3934.9,3934.6,0.1204]
[1758865726170,3.3423,3935.0,3934.5,0.46338994]
[1758865726369,0.3306,3934.9,3934.6,39.878]
[1758865726681,0.3306,3934.9,3934.7,3.2078]
[1758865726872,3.66491,3935.4,3934.8,0.268]
[1758865727266,3.99551,3935.4,3934.8,0.3884]
[1758865728272,4.43811,3935.4,3935.3,0.1926]
[1758865728868,4.43811,3935.4,3935.3,41.2606]
[1758865729175,3.981,3935.4,3935.3,41.2606]
[1758865729674,3.5384,3935.4,3935.3,41.2606]
[1758865729978,0.3306,3935.4,3935.3,44.5888]
[1758865730478,0.1345,3935.5,3935.4,0.3852]
[1758865730681,0.3306,3935.7,3935.4,0.3852]
[1758865730876,0.7732,3935.9,3935.8,0.1926]
[1758865731171,0.7732,3935.9,3935.8,0.4606]
[1758865731372,0.7732,3935.9,3935.8,0.6532]
[1758865731771,0.7732,3935.9,3935.0,0.1204]
[1758865731772,0.3306,3934.9,3934.5,0.46338994]
[1758865731971,6.19761825,3934.6,3934.5,0.46338994]
[1758865732377,6.19761825,3934.6,3934.5,0.73438994]
[1758865732976,0.3306,3933.8,3933.1,0.1204]
[1758865733279,0.1345,3933.5,3933.2,39.892]
[1758865733482,0.1345,3933.5,3933.1,0.1204]
[1758865733785,0.1345,3933.5,3933.2,39.893]
[1758865734084,0.3306,3933.4,3933.3,0.1204]
[1758865734280,0.1345,3933.5,3933.3,0.1204]
[1758865734481,0.4651,3933.5,3933.4,40.8]
[1758865734981,3.2078,3933.7,3933.5,0.45732]
[1758865735174,0.3306,3933.9,3933.6,0.271]
[1758865735379,0.1345,3934.0,3933.6,0.271]
[1758865735880,3.2078,3934.1,3933.9,0.1204]
[1758865736076,0.3306,3934.4,3933.8,0.57769]
[1758865736275,3.3423,3934.5,3933.9,0.271]
[1758865736276,0.1345,3934.0,3933.9,0.271]
[1758865736477,0.3306,3933.9,3933.7,39.628]
[1758865736672,0.3306,3933.9,3933.8,0.271]
[1758865737080,0.3306,3933.9,3933.7,40.08529]
[1758865737081,0.3306,3933.9,3933.7,0.57769]
[1758865737282,3.2078,3934.1,3933.9,0.57768]
[1758865737482,3.5384,3934.1,3933.9,0.57768]
[1758865737884,0.3306,3934.1,3933.9,0.57768]
[1758865738082,0.3306,3934.1,3934.0,0.271]
[1758865738882,0.3306,3934.4,3934.2,0.57763]
[1758865739082,0.3306,3934.4,3933.6,0.1204]
[1758865739381,3.3677,3934.5,3934.0,0.45726]
[1758865739586,3.3677,3934.5,3934.1,0.271]
[1758865739885,0.3306,3934.4,3934.1,0.72824]
[1758865740076,3.3677,3934.5,3934.1,0.45724]
[1758865740277,0.3149,3934.4,3934.3,0.45722]
[1758865740473,0.3149,3934.4,3934.3,0.27]
[1758865740882,0.3149,3934.4,3934.3,0.6582]
[1758865741075,0.3149,3934.4,3933.5,3.2078]
[1758865741076,0.1257,3933.0,3932.5,0.01387603]
[1758865741278,0.1257,3933.0,3932.3,3.2078]
[1758865741279,0.4406,3932.0,3931.9,0.276]
[1758865741989,0.3149,3932.0,3931.9,0.276]
[1758865742175,0.1257,3932.0,3931.5,40.8]
[1758865742380,0.3149,3931.6,3931.5,40.8]
[1758865742574,0.3149,3931.6,3931.5,41.076]
[1758865743588,0.3149,3931.6,3931.5,41.075]
[1758865744186,0.4673,3931.5,3930.7,3.2078]
[1758865744379,0.4673,3931.5,3930.8,0.276]
[1758865744584,0.4673,3931.5,3930.9,0.1919]
[1758865744781,0.1279,3931.5,3930.5,3.2078]
[1758865744984,0.3394,3930.9,3930.6,0.276]
[1758865745184,0.1279,3931.0,3930.6,0.276]
[1758865745386,0.3394,3930.9,3930.7,40.8]
[1758865745587,0.1279,3931.0,3930.8,0.276]
[1758865745892,0.3394,3930.9,3930.8,0.276]
[1758865746094,3.2078,3931.3,3931.2,0.1919]
[1758865746289,0.3394,3931.2,3931.1,39.645]
[1758865746490,0.3394,3931.2,3931.1,39.921]
[1758865747189,3.2078,3931.3,3931.1,39.921]
[1758865747389,3.2078,3931.3,3931.1,0.1919]
[1758865747591,3.2078,3931.3,3931.2,39.924]
[1758865747783,3.2078,3931.7,3931.5,0.45755]
[1758865747993,3.2078,3931.7,3931.6,0.4679]
[1758865748290,3.2078,3931.7,3931.6,41.2679]
[1758865748891,3.2078,3931.7,3931.6,46.2679]
[1758865749889,3.2078,3931.7,3931.6,40.8]
[1758865749890,3.5472,3931.7,3931.6,40.8]
[1758865750296,3.5472,3931.7,3931.6,41.076]
[1758865751490,3.5472,3931.7,3931.6,40.8]
[1758865751693,3.5472,3931.7,3931.6,41.076]
[1758865752089,3.2078,3931.7,3931.6,41.2679]
[1758865752396,3.2078,3931.7,3931.6,80.73]
[1758865752695,3.5472,3931.7,3931.6,80.73]
[1758865753094,3.2078,3931.7,3931.6,40.9919]
[1758865753294,3.2078,3931.7,3931.6,80.9219]
[1758865753801,3.5472,3931.7,3931.6,40.8]
[1758865754794,3.5472,3931.7,3931.6,41.075]
[1758865754995,3.5472,3931.7,3931.6,40.8]
[1758865755301,3.5472,3931.7,3931.6,41.075]